[Event "World Women Teams Championship"]
[Site "Sitges, Spain"]
[Date "2021.09.27"]
[Round "2.8"]
[White "Mamedjarova, Zeinab"]
[Black "Gaboyan, Susanna"]
[Result "0-1"]
[TimeControl "40+10"]
[WhiteElo "2198"]
[BlackElo "2083"]

1. Nf3 {[%clk 00:45:11]} {[%emt 00:00:09]} Nf6 {[%clk 00:45:17]} {[%emt
00:00:03]} 2. g3 {[%clk 00:45:18]} {[%emt 00:00:02]} g6 {[%clk 00:45:24]}
{[%emt 00:00:03]} 3. c4 {[%clk 00:45:12]} {[%emt 00:00:17]} Bg7 {[%clk
00:45:32]} {[%emt 00:00:02]} 4. Bg2 {[%clk 00:45:20]} {[%emt 00:00:02]} O-O
{[%clk 00:45:37]} {[%emt 00:00:05]} 5. O-O {[%clk 00:45:27]} {[%emt 00:00:04]}
d5 {[%emt 00:02:55]} 6. cxd5 {[%clk 00:40:43]} {[%emt 00:02:15]} Nxd5 {[%clk
00:45:38]} {[%emt 00:00:02]} 7. Nc3 {[%emt 00:00:24]} Nb6 {[%emt 00:01:07]} 8.
b3 {[%emt 00:00:42]} Nc6 {[%clk 00:45:17]} {[%emt 00:00:02]} 9. Bb2 {[%emt
00:00:18]} e5 {[%clk 00:45:03]} {[%emt 00:00:19]} 10. d3 {[%emt 00:02:10]} a5
{[%emt 00:00:58]} 11. a4 {[%clk 00:37:34]} {[%emt 00:01:01]} Be6 {[%emt
00:06:59]} 12. Ne4 {[%clk 00:34:24]} {[%emt 00:02:16]} Nd4 {[%emt 00:03:05]} 13.
Nxd4 {[%emt 00:00:58]} exd4 {[%clk 00:37:12]} {[%emt 00:00:01]} 14. Ba3 {[%clk
00:25:56]} {[%emt 00:05:23]} Re8 {[%clk 00:37:05]} {[%emt 00:00:16]} 15. Nc5
{[%emt 00:09:06]} Nd5 {[%clk 00:28:15]} {[%emt 00:00:01]} 16. Nxb7 {[%emt
00:07:27]} Qc8 {[%clk 00:26:06]} {[%emt 00:01:03]} 17. Nc5 {[%clk 00:19:57]}
{[%emt 00:00:12]} Nc3 {[%emt 00:08:35]} 18. Qd2 {[%clk 00:09:54]} {[%emt
00:01:56]} Bg4 {[%clk 00:23:04]} {[%emt 00:03:03]} 19. Rfe1 {[%clk 00:04:15]}
{[%emt 00:05:50]} Nxe2+ {[%clk 00:19:14]} {[%emt 00:04:00]} 20. Kf1 {[%clk
00:02:25]} {[%emt 00:01:59]} Qf5 {[%clk 00:18:19]} {[%emt 00:01:04]} 21. f4
{[%clk 00:01:03]} {[%emt 00:01:32]} Re3 {[%emt 00:12:21]} 22. Bxa8 {[%clk
00:00:24]} {[%emt 00:00:04]} Qh5 {[%clk 00:06:28]} {[%emt 00:00:36]} 23. Rxe2
{[%clk 00:00:12]} {[%emt 00:00:23]} Rxe2 {[%clk 00:06:32]} {[%emt 00:00:06]} 24.
Qxe2 {[%clk 00:00:19]} {[%emt 00:00:03]} Bxe2+ {[%emt 00:00:22]} 25. Kg2 {[%emt
00:00:10]} Bf8 {[%clk 00:06:28]} {[%emt 00:00:04]} 26. Nd7 {[%emt 00:02:16]}
Bg7 {[%clk 00:04:11]} {[%emt 00:00:23]} 27. Re1 {[%clk 00:00:23]} h6 {[%clk
00:04:17]} {[%emt 00:00:04]} 28. h3 {[%emt 00:01:01]} Bxd3 {[%clk 00:02:59]}
{[%emt 00:00:31]} 29. Re8+ {[%clk 00:00:39]} Kh7 {[%clk 00:03:08]} {[%emt
00:00:02]} 30. Bf3 {[%clk 00:00:27]} {[%emt 00:00:22]} Qf5 {[%clk 00:02:56]}
{[%emt 00:00:22]} 31. Ne5 {[%clk 00:00:19]} {[%emt 00:00:18]} Be4 {[%clk
00:02:58]} {[%emt 00:00:08]} 32. Re7 {[%clk 00:00:23]} {[%emt 00:00:06]} Bxf3+
{[%emt 00:00:11]} 33. Kxf3 {[%clk 00:00:28]} Bxe5 {[%clk 00:02:51]} {[%emt
00:00:20]} 34. Rxe5 {[%clk 00:00:37]} Qd3+ {[%clk 00:02:53]} {[%emt 00:00:08]}
35. Kf2 {[%clk 00:00:17]} {[%emt 00:00:55]} Qxb3 {[%clk 00:02:25]} {[%emt
00:00:14]} 36. Bc5 {[%emt 00:01:53]} Qc2+ {[%clk 00:00:49]} {[%emt 00:00:07]}
37. Kf3 {[%clk 00:00:15]} {[%emt 00:00:08]} d3 {[%clk 00:00:38]} {[%emt
00:00:21]} 38. Be3 {[%clk 00:00:17]} {[%emt 00:00:08]} Qe2+ {[%clk 00:00:30]}
{[%emt 00:00:18]} 39. Ke4 {[%emt 00:00:06]} d2 {[%clk 00:00:35]} {[%emt
00:00:02]} 0-1

[Event "World Women Teams Championship"]
[Site "Sitges, Spain"]
[Date "2021.09.27"]
[Round "2.9"]
[White "Matnadze Ana (SPA)"]
[Black "Harika Dronavalli (IND)"]
[Result "1/2-1/2"]
[TimeControl "40+10"]
[WhiteElo "2349"]
[BlackElo "2450"]

1. d4 {[%clk 00:45:16]} {[%emt 00:00:03]} d5 {[%clk 00:45:14]} {[%emt
00:00:07]} 2. Nf3 {[%clk 00:45:22]} {[%emt 00:00:03]} c6 {[%clk 00:45:21]}
{[%emt 00:00:03]} 3. g3 {[%clk 00:45:29]} {[%emt 00:00:03]} Nf6 {[%clk
00:45:18]} {[%emt 00:00:13]} 4. Bg2 {[%clk 00:45:37]} {[%emt 00:00:02]} g6
{[%clk 00:45:26]} {[%emt 00:00:02]} 5. O-O {[%clk 00:45:41]} {[%emt 00:00:06]}
Bg7 {[%clk 00:45:34]} {[%emt 00:00:02]} 6. c4 {[%clk 00:45:48]} {[%emt
00:00:03]} O-O {[%clk 00:45:40]} {[%emt 00:00:04]} 7. Qb3 {[%clk 00:44:07]}
{[%emt 00:01:51]} a5 {[%clk 00:45:00]} {[%emt 00:00:51]} 8. Nc3 {[%clk
00:43:40]} {[%emt 00:00:36]} a4 {[%clk 00:45:04]} {[%emt 00:00:07]} 9. Nxa4
{[%clk 00:43:21]} {[%emt 00:00:29]} dxc4 {[%clk 00:44:56]} {[%emt 00:00:19]} 10.
Qd1 {[%clk 00:42:38]} {[%emt 00:01:11]} b5 11. Nc5 {[%emt 00:04:26]} Nbd7
{[%emt 00:04:07]} 12. Nxd7 {[%emt 00:00:45]} Nxd7 {[%clk 00:40:10]} {[%emt
00:00:08]} 13. Bg5 {[%emt 00:01:56]} Bb7 {[%clk 00:37:13]} {[%emt 00:01:32]} 14.
Qd2 {[%clk 00:37:46]} {[%emt 00:00:41]} Re8 {[%emt 00:01:06]} 15. Rfd1 {[%emt
00:00:53]} Qa5 {[%clk 00:23:35]} {[%emt 00:06:01]} 16. Qf4 {[%clk 00:33:27]} e5
{[%clk 00:22:36]} {[%emt 00:11:46]} 17. dxe5 {[%clk 00:33:15]} {[%emt
00:00:23]} Nxe5 {[%clk 00:22:44]} {[%emt 00:00:01]} 18. Bf6 {[%clk 00:31:21]}
{[%emt 00:02:04]} Bxf6 {[%clk 00:19:11]} {[%emt 00:03:43]} 19. Qxf6 {[%clk
00:31:28]} {[%emt 00:00:04]} Re6 {[%clk 00:18:43]} {[%emt 00:00:38]} 20. Qh4
{[%clk 00:30:37]} {[%emt 00:01:00]} Nxf3+ {[%clk 00:18:47]} {[%emt 00:00:07]}
21. Bxf3 {[%clk 00:30:45]} {[%emt 00:00:02]} Qc7 {[%emt 00:04:26]} 22. e3
{[%emt 00:02:20]} Kg7 {[%clk 00:14:32]} {[%emt 00:02:53]} 23. Qd4+ {[%clk
00:24:56]} {[%emt 00:01:04]} Rf6 {[%clk 00:14:09]} {[%emt 00:00:33]} 24. Bg2
{[%clk 00:20:28]} {[%emt 00:04:38]} c5 {[%clk 00:13:37]} {[%emt 00:00:42]} 25.
Qc3 {[%clk 00:18:34]} {[%emt 00:02:05]} Bxg2 26. Kxg2 {[%clk 00:18:42]} Qc6+
{[%clk 00:12:48]} {[%emt 00:01:01]} 27. Kg1 {[%clk 00:18:51]} {[%emt 00:00:01]}
Qf3 {[%clk 00:12:13]} {[%emt 00:00:45]} 28. Rd2 {[%clk 00:18:34]} {[%emt
00:00:27]} h5 {[%clk 00:11:44]} {[%emt 00:00:39]} 29. h4 {[%clk 00:17:38]}
{[%emt 00:01:05]} Raa6 {[%emt 00:03:28]} 30. Qe5 {[%clk 00:15:40]} {[%emt
00:01:32]} Qf5 {[%clk 00:08:15]} {[%emt 00:00:58]} 31. Qe8 {[%clk 00:15:16]}
{[%emt 00:00:35]} b4 {[%emt 00:03:01]} 32. Rd8 {[%clk 00:11:02]} {[%emt
00:02:41]} Qxf2+ {[%clk 00:07:13]} {[%emt 00:00:04]} 33. Kh1 {[%emt 00:00:16]}
Qf3+ {[%clk 00:07:06]} 34. Kh2 {[%clk 00:11:21]} {[%emt 00:00:01]} Qf2+ {[%clk
00:06:10]} {[%emt 00:01:05]} 35. Kh1 {[%clk 00:11:29]} {[%emt 00:00:02]} Qf3+
{[%clk 00:06:03]} {[%emt 00:00:16]} 36. Kh2 {[%clk 00:11:38]} {[%emt 00:00:02]}
Qf2+ {[%clk 00:06:12]} {[%emt 00:00:02]} 37. Kh1 {[%clk 00:11:45]} {[%emt
00:00:02]} Qf3+ {[%clk 00:06:21]} {[%emt 00:00:01]} 38. Kh2 {[%clk 00:11:49]}
{[%emt 00:00:06]} 1/2-1/2

[Event "World Women Teams Championship"]
[Site "Sitges, Spain"]
[Date "2021.09.27"]
[Round "2.10"]
[White "Vaishali R (IND)"]
[Black "Vega Gutierrez Sabrina (SPA)"]
[Result "1-0"]
[TimeControl "40+10"]
[WhiteElo "2149"]
[BlackElo "2214"]

1. e4 {[%clk 00:45:04]} {[%emt 00:00:15]} c5 {[%clk 00:45:18]} {[%emt
00:00:02]} 2. Nf3 {[%clk 00:45:10]} {[%emt 00:00:05]} e6 {[%clk 00:45:26]}
{[%emt 00:00:02]} 3. d4 {[%clk 00:45:16]} {[%emt 00:00:04]} cxd4 {[%clk
00:45:34]} {[%emt 00:00:03]} 4. Nxd4 {[%clk 00:45:23]} {[%emt 00:00:02]} Nf6
{[%clk 00:45:38]} {[%emt 00:00:06]} 5. Nc3 {[%clk 00:45:30]} {[%emt 00:00:03]}
Nc6 {[%clk 00:45:45]} {[%emt 00:00:03]} 6. a3 {[%clk 00:45:36]} {[%emt
00:00:04]} Be7 {[%clk 00:45:10]} {[%emt 00:00:44]} 7. Nxc6 {[%clk 00:44:07]}
{[%emt 00:01:40]} bxc6 {[%clk 00:44:00]} {[%emt 00:01:20]} 8. e5 {[%clk
00:44:09]} {[%emt 00:00:09]} Nd5 {[%emt 00:00:36]} 9. Qg4 {[%emt 00:02:03]} g6
{[%emt 00:02:00]} 10. Qg3 {[%clk 00:38:09]} {[%emt 00:04:38]} h5 {[%emt
00:18:04]} 11. Ne4 {[%clk 00:28:55]} {[%emt 00:00:48]} h4 {[%clk 00:32:09]}
{[%emt 00:00:05]} 12. Qh3 {[%clk 00:28:26]} {[%emt 00:00:38]} Qc7 {[%clk
00:31:07]} {[%emt 00:01:12]} 13. f4 {[%clk 00:26:54]} {[%emt 00:01:42]} d6
{[%clk 00:28:40]} {[%emt 00:02:37]} 14. exd6 {[%clk 00:21:48]} {[%emt
00:05:16]} Bxd6 {[%clk 00:28:47]} {[%emt 00:00:03]} 15. Nxd6+ {[%clk 00:16:39]}
{[%emt 00:05:19]} Qxd6 {[%clk 00:28:54]} {[%emt 00:00:03]} 16. Qd3 {[%clk
00:16:09]} {[%emt 00:00:40]} e5 {[%clk 00:24:00]} {[%emt 00:05:04]} 17. c4
{[%clk 00:14:33]} {[%emt 00:01:46]} Bf5 {[%clk 00:24:05]} {[%emt 00:00:05]} 18.
fxe5 {[%clk 00:13:13]} {[%emt 00:01:30]} Qc5 {[%clk 00:16:59]} {[%emt
00:07:16]} 19. Qf3 {[%clk 00:09:59]} {[%emt 00:03:23]} Nc7 {[%clk 00:16:35]}
{[%emt 00:00:34]} 20. Qe3 {[%clk 00:05:50]} {[%emt 00:04:19]} Ne6 {[%emt
00:01:35]} 21. Be2 {[%clk 00:03:27]} {[%emt 00:01:24]} Rb8 {[%clk 00:14:53]}
{[%emt 00:01:37]} 22. b4 {[%clk 00:02:23]} {[%emt 00:01:14]} Qd4 {[%clk
00:14:26]} {[%emt 00:00:36]} 23. Ra2 {[%emt 00:01:14]} h3 {[%clk 00:13:04]}
{[%emt 00:01:32]} 24. g3 {[%clk 00:01:22]} {[%emt 00:00:07]} a5 {[%clk
00:11:56]} {[%emt 00:01:18]} 25. O-O {[%clk 00:01:01]} {[%emt 00:00:31]} O-O
{[%clk 00:09:35]} {[%emt 00:02:31]} 26. Rb2 {[%emt 00:00:54]} axb4 {[%clk
00:08:45]} {[%emt 00:00:57]} 27. axb4 {[%clk 00:00:28]} {[%emt 00:00:02]} Ra8
{[%clk 00:08:36]} {[%emt 00:00:19]} 28. Rd1 {[%clk 00:00:31]} {[%emt 00:00:07]}
Qe4 {[%clk 00:05:40]} {[%emt 00:03:06]} 29. Qxe4 {[%clk 00:00:36]} {[%emt
00:00:06]} Bxe4 {[%clk 00:05:48]} {[%emt 00:00:02]} 30. Bh6 {[%clk 00:00:30]}
{[%emt 00:00:15]} Rfd8 {[%clk 00:04:29]} {[%emt 00:01:28]} 31. Rxd8+ {[%clk
00:00:35]} {[%emt 00:00:05]} Rxd8 {[%clk 00:04:37]} {[%emt 00:00:02]} 32. Be3
{[%clk 00:00:41]} {[%emt 00:00:05]} Ra8 {[%clk 00:04:14]} {[%emt 00:00:32]} 33.
g4 {[%clk 00:00:19]} {[%emt 00:00:33]} g5 {[%clk 00:02:55]} {[%emt 00:01:28]}
34. Kf2 {[%clk 00:00:25]} {[%emt 00:00:04]} Nf4 {[%clk 00:02:35]} {[%emt
00:00:30]} 35. Bxf4 {[%clk 00:00:26]} {[%emt 00:00:10]} gxf4 {[%clk 00:02:39]}
{[%emt 00:00:06]} 36. b5 {[%clk 00:00:29]} {[%emt 00:00:07]} cxb5 {[%clk
00:02:35]} {[%emt 00:00:14]} 37. cxb5 {[%clk 00:00:35]} {[%emt 00:00:03]} Ra1
{[%clk 00:02:04]} {[%emt 00:00:41]} 38. Rb4 {[%clk 00:00:30]} {[%emt 00:00:15]}
Bd5 {[%clk 00:00:12]} {[%emt 00:02:02]} 39. Rxf4 {[%clk 00:00:37]} {[%emt
00:00:03]} Rh1 {[%clk 00:00:13]} {[%emt 00:00:10]} 40. Kg3 {[%clk 00:00:44]}
{[%emt 00:00:02]} Re1 {[%clk 00:00:21]} {[%emt 00:00:02]} 41. Rf2 {[%clk
00:00:43]} {[%emt 00:00:11]} Bg2 {[%clk 00:00:18]} {[%emt 00:00:14]} 42. Bc4
{[%clk 00:00:31]} {[%emt 00:00:22]} Re3+ {[%clk 00:00:16]} {[%emt 00:00:12]} 43.
Kh4 {[%clk 00:00:37]} {[%emt 00:00:03]} Rxe5 {[%clk 00:00:24]} {[%emt
00:00:03]} 44. Rxf7 {[%clk 00:00:40]} {[%emt 00:00:07]} Kh8 {[%clk 00:00:12]}
{[%emt 00:00:22]} 45. b6 {[%clk 00:00:41]} {[%emt 00:00:09]} Rc5 {[%clk
00:00:12]} {[%emt 00:00:10]} 46. Rc7 {[%clk 00:00:45]} {[%emt 00:00:06]} Re5
{[%clk 00:00:11]} {[%emt 00:00:11]} 47. b7 {[%clk 00:00:40]} {[%emt 00:00:15]}
1-0

[Event "World Women Teams Championship"]
[Site "Sitges, Spain"]
[Date "2021.09.27"]
[Round "2.11"]
[White "Eizaguerri Floris Maria (SPA)"]
[Black "Kulkarni Bhakti (IND)"]
[Result "1/2-1/2"]
[TimeControl "40+10"]
[WhiteElo "1811"]
[BlackElo "2325"]

1. e4 {[%emt 00:00:07]} d5 {[%clk 00:45:12]} {[%emt 00:00:02]} 2. exd5 {[%clk
00:45:18]} {[%emt 00:00:10]} Qxd5 {[%clk 00:45:19]} {[%emt 00:00:03]} 3. Nc3
{[%clk 00:45:24]} {[%emt 00:00:04]} Qa5 {[%clk 00:45:26]} {[%emt 00:00:03]} 4.
d4 {[%clk 00:45:23]} {[%emt 00:00:11]} Nf6 {[%clk 00:45:32]} {[%emt 00:00:04]}
5. Bd2 {[%clk 00:45:15]} {[%emt 00:00:18]} Bg4 {[%emt 00:01:54]} 6. f3 {[%clk
00:43:19]} {[%emt 00:00:40]} Bd7 {[%emt 00:00:22]} 7. Bc4 {[%clk 00:41:52]}
{[%emt 00:01:28]} Qb6 {[%emt 00:02:08]} 8. Qe2 {[%emt 00:09:25]} Nc6 {[%emt
00:05:50]} 9. d5 {[%emt 00:05:10]} Nd4 {[%clk 00:36:34]} {[%emt 00:00:05]} 10.
Qd3 {[%emt 00:02:54]} O-O-O {[%clk 00:32:14]} {[%emt 00:02:04]} 11. O-O-O
{[%emt 00:08:58]} Bf5 {[%clk 00:27:59]} {[%emt 00:00:34]} 12. Ne4 {[%clk
00:23:29]} {[%emt 00:00:07]} e6 {[%clk 00:22:54]} {[%emt 00:05:15]} 13. Be3
{[%clk 00:15:23]} {[%emt 00:08:17]} exd5 {[%emt 00:03:58]} 14. Bxd4 {[%clk
00:12:53]} {[%emt 00:00:51]} dxc4 {[%clk 00:15:08]} {[%emt 00:05:56]} 15. Qxc4
{[%clk 00:09:34]} {[%emt 00:03:29]} Be6 {[%clk 00:12:07]} {[%emt 00:03:11]} 16.
Qa4 {[%clk 00:06:19]} {[%emt 00:03:24]} c5 {[%clk 00:11:31]} {[%emt 00:00:45]}
17. Bxf6 {[%emt 00:02:04]} Rxd1+ {[%clk 00:09:35]} {[%emt 00:00:13]} 18. Kxd1
{[%clk 00:06:28]} {[%emt 00:00:01]} gxf6 {[%clk 00:09:42]} {[%emt 00:00:03]} 19.
Kc1 {[%clk 00:05:08]} {[%emt 00:01:30]} Bh6+ {[%clk 00:08:49]} {[%emt
00:01:02]} 20. Kb1 {[%clk 00:05:10]} {[%emt 00:00:09]} Rd8 {[%clk 00:08:19]}
{[%emt 00:00:40]} 21. Ne2 {[%clk 00:04:10]} {[%emt 00:01:10]} Kb8 {[%clk
00:07:47]} {[%emt 00:00:42]} 22. N4c3 {[%clk 00:02:25]} {[%emt 00:01:55]} c4
{[%clk 00:06:38]} {[%emt 00:01:19]} 23. f4 {[%clk 00:02:01]} {[%emt 00:00:34]}
f5 {[%clk 00:06:09]} {[%emt 00:00:40]} 24. Qb5 {[%clk 00:01:50]} {[%emt
00:00:20]} Qe3 {[%clk 00:05:35]} {[%emt 00:00:44]} 25. g3 {[%clk 00:01:58]}
{[%emt 00:00:02]} Bg7 {[%clk 00:05:40]} {[%emt 00:00:07]} 26. a4 {[%clk
00:01:25]} {[%emt 00:00:43]} a6 {[%clk 00:05:35]} {[%emt 00:00:14]} 27. Qb4
{[%clk 00:01:03]} {[%emt 00:00:32]} Rd2 {[%emt 00:00:27]} 28. a5 {[%clk
00:00:53]} {[%emt 00:00:04]} Qf3 {[%clk 00:04:10]} {[%emt 00:01:34]} 29. Rc1
{[%clk 00:00:51]} {[%emt 00:00:13]} Qc6 {[%clk 00:03:48]} {[%emt 00:00:32]} 30.
Qe7 {[%clk 00:00:40]} {[%emt 00:00:20]} Ka7 {[%clk 00:03:18]} {[%emt 00:00:40]}
31. Qb4 {[%clk 00:00:40]} {[%emt 00:00:10]} Bf6 {[%clk 00:03:20]} {[%emt
00:00:09]} 32. h4 {[%clk 00:00:38]} {[%emt 00:00:13]} h5 {[%emt 00:00:33]} 33.
Rd1 {[%emt 00:00:16]} Rxd1+ {[%clk 00:02:46]} {[%emt 00:00:10]} 34. Nxd1 {[%clk
00:00:51]} {[%emt 00:00:01]} Bd5 {[%clk 00:02:45]} {[%emt 00:00:11]} 35. Nec3
{[%clk 00:00:45]} {[%emt 00:00:15]} Be6 {[%clk 00:02:31]} {[%emt 00:00:24]} 36.
Na4 {[%emt 00:00:50]} Bd4 {[%clk 00:01:46]} {[%emt 00:00:12]} 37. Ndc3 {[%emt
00:00:19]} Qh1+ {[%clk 00:01:41]} {[%emt 00:00:06]} 38. Ka2 {[%emt 00:00:17]}
Qg2 {[%clk 00:01:32]} {[%emt 00:00:03]} 39. Qd6 {[%clk 00:00:53]} {[%emt
00:00:14]} Be3 {[%clk 00:01:17]} {[%emt 00:00:25]} 40. Nc5 {[%emt 00:00:53]}
Qc6 {[%clk 00:00:44]} {[%emt 00:00:16]} 41. Qxc6 {[%clk 00:00:45]} {[%emt
00:00:01]} bxc6 {[%clk 00:00:51]} {[%emt 00:00:02]} 42. Nxe6 {[%clk 00:00:41]}
{[%emt 00:00:15]} fxe6 {[%emt 00:00:17]} 43. b3 {[%emt 00:00:20]} Bd2 {[%emt
00:00:13]} 44. Kb2 {[%clk 00:00:28]} {[%emt 00:00:06]} Be1 {[%clk 00:00:53]}
{[%emt 00:00:04]} 45. Ne2 {[%emt 00:00:25]} c5 {[%clk 00:00:39]} {[%emt
00:00:03]} 46. bxc4 {[%emt 00:00:20]} Bxa5 {[%emt 00:00:12]} 47. c3 {[%clk
00:00:20]} {[%emt 00:00:07]} Bc7 {[%emt 00:00:11]} 48. Ng1 {[%clk 00:00:20]}
{[%emt 00:00:02]} e5 {[%emt 00:00:05]} 49. Ne2 {[%emt 00:00:38]} e4 {[%clk
00:00:19]} {[%emt 00:00:19]} 50. Kb3 {[%clk 00:00:29]} {[%emt 00:00:02]} Kb6
{[%emt 00:00:18]} 51. Nc1 {[%clk 00:00:22]} {[%emt 00:00:04]} Kc6 {[%clk
00:00:33]} {[%emt 00:00:01]} 52. Kc2 {[%clk 00:00:27]} {[%emt 00:00:05]} Kb6
{[%clk 00:00:37]} {[%emt 00:00:06]} 53. Kb3 {[%clk 00:00:36]} {[%emt 00:00:02]}
Bd8 {[%clk 00:00:44]} {[%emt 00:00:02]} 54. Kc2 {[%emt 00:00:23]} Bf6 55. Kb3
{[%clk 00:00:38]} {[%emt 00:00:03]} Kc6 {[%emt 00:00:11]} 56. Kc2 {[%emt
00:00:09]} a5 {[%clk 00:00:35]} {[%emt 00:00:25]} 57. Na2 {[%clk 00:00:25]} a4
58. Kd2 {[%emt 00:00:58]} Bd4 {[%clk 00:00:25]} {[%emt 00:00:01]} 59. Ke2
{[%clk 00:00:16]} {[%emt 00:00:18]} Bf6 {[%clk 00:00:25]} {[%emt 00:00:10]} 60.
Kd2 {[%clk 00:00:19]} {[%emt 00:00:08]} Kb6 {[%clk 00:00:34]} {[%emt 00:00:01]}
61. Kc2 {[%clk 00:00:24]} {[%emt 00:00:05]} Ka5 {[%emt 00:00:25]} 62. Kd2
{[%clk 00:00:12]} {[%emt 00:00:08]} a3 {[%clk 00:00:38]} {[%emt 00:00:05]} 63.
Kc2 {[%clk 00:00:18]} {[%emt 00:00:05]} Ka4 {[%emt 00:00:03]} 64. Nc1 {[%emt
00:00:22]} e3 {[%emt 00:00:21]} 65. Nd3 {[%emt 00:00:05]} Be7 {[%emt 00:00:11]}
66. Nc1 {[%emt 00:00:06]} Bd6 {[%clk 00:00:37]} {[%emt 00:00:01]} 67. Kd3
{[%emt 00:00:26]} e2 {[%clk 00:00:28]} {[%emt 00:00:01]} 68. Kxe2 {[%clk
00:00:23]} {[%emt 00:00:07]} a2 {[%clk 00:00:36]} {[%emt 00:00:02]} 69. Nxa2
{[%clk 00:00:27]} {[%emt 00:00:06]} Kb3 {[%emt 00:00:11]} 70. Nc1+ {[%emt
00:00:06]} Kxc3 {[%emt 00:00:16]} 71. Nd3 {[%clk 00:00:18]} {[%emt 00:00:06]}
Kxc4 {[%clk 00:00:47]} {[%emt 00:00:09]} 72. Ne1 {[%emt 00:00:08]} Kc3 {[%clk
00:00:43]} {[%emt 00:00:11]} 73. Ng2 {[%emt 00:00:07]} Kd4 {[%clk 00:00:48]}
{[%emt 00:00:03]} 74. Ne3 {[%clk 00:00:36]} Ke4 {[%clk 00:00:56]} {[%emt
00:00:02]} 75. Nc4 {[%emt 00:00:19]} Bxf4 {[%emt 00:00:06]} 76. gxf4 {[%clk
00:00:49]} {[%emt 00:00:02]} Kxf4 {[%emt 00:00:23]} 77. Ne3 {[%clk 00:00:35]}
{[%emt 00:00:03]} Ke4 {[%emt 00:00:18]} 78. Nf1 {[%emt 00:00:09]} f4 {[%clk
00:01:00]} {[%emt 00:00:03]} 79. Nd2+ {[%clk 00:00:39]} {[%emt 00:00:02]} Kd4
{[%emt 00:00:10]} 80. Kf3 {[%emt 00:00:56]} Ke5 {[%emt 00:00:08]} 81. Nc4+
{[%emt 00:00:10]} Kd4 {[%emt 00:00:31]} 82. Na3 {[%clk 00:00:16]} {[%emt
00:00:02]} Ke5 {[%clk 00:00:30]} {[%emt 00:00:04]} 83. Nc4+ {[%clk 00:00:21]}
{[%emt 00:00:06]} Kd4 {[%clk 00:00:39]} {[%emt 00:00:01]} 84. Nb2 {[%emt
00:00:07]} c4 {[%emt 00:00:25]} 85. Nxc4 {[%clk 00:00:14]} {[%emt 00:00:05]}
Kxc4 86. Kxf4 {[%clk 00:00:23]} Kd5 {[%clk 00:00:56]} 87. Kg5 {[%clk 00:00:33]}
Ke6 {[%clk 00:01:05]} {[%emt 00:00:02]} 88. Kxh5 {[%clk 00:00:40]} {[%emt
00:00:02]} Kf7 {[%clk 00:01:14]} {[%emt 00:00:01]} 89. Kh6 {[%clk 00:00:49]}
Kg8 {[%clk 00:01:23]} 90. h5 {[%clk 00:00:59]} Kh8 {[%clk 00:01:32]} {[%emt
00:00:02]} 91. Kg6 {[%clk 00:01:08]} Kg8 92. h6 Kh8 {[%clk 00:01:50]} {[%emt
00:00:01]} 93. h7 {[%clk 00:01:27]} 1/2-1/2